[Event "Czech Championship 2022"]
[Site "Usti nad Labem"]
[Date "2022.05.21"]
[Round "8.17"]
[White "Soucek, Petr"]
[Black "Bokhnak, Timofey"]
[Result "1/2-1/2"]
[ECO "A17"]
[WhiteElo "2177"]
[BlackElo "2060"]
[Annotator "TA"]
[PlyCount "76"]
[EventDate "2022.05.12"]
[EventType "swiss"]
[EventCountry "CZE"]
[SourceTitle "playchess.com"]
[Source "ChessBase"]
[SourceQuality "1"]
[TimeControl "40/5400+30:1800+30"]

{[%evp 9,76,-8,25,2,34,15,14,18,25,21,50,60,68,36,79,8,18,0,23,22,172,101,141,155,152,128,129,129,129,131,119,121,145,75,310,108,231,229,229,235,202,223,182,30,35,21,9,-20,-6,-6,-5,-17,-7,-46,-56,-73,-60,-89,-3,-16,-13,-11,0,-13,-11,-16,-15,-28,-25]} 1. c4 {[%emt 0:00:03]} e6 {[%emt 0:00:36]} 2. Nf3 {[%emt 0:00:42]} d5 {[%emt 0:01:06]} 3. e3 {[%emt 0:00:06]} Nf6 {[%emt 0:01:48]} 4. Nc3 {[%emt 0:00:34]} b6 {[%emt 0:07:24]} 5. cxd5 {[%emt 0:00:34]} Nxd5 {[%emt 0:01:31]} 6. Nxd5 {[%emt 0:01:23] A17: English Opening: 1...Nf6 with ...Bb4.} Qxd5 {[%emt 0:01:17] [#]} 7. Qc2 $146 {[%emt 0:04:20]} ({Predecessor:} 7. b3 Be7 8. Bb2 O-O 9. Bc4 Qe4 10. Qe2 Bb7 11. O-O Rd8 12. d3 Qg4 13. h3 {½-½ (40) Gatterer,F (2271)-Knechtel,R (2245) Austria 2018}) 7... c5 {[%emt 0:03:47]} 8. Bc4 {[%emt 0:06:18] The position is equal.} Qd6 {[%emt 0:02:31]} 9. b3 {[%emt 0:01:46]} Bb7 {[%emt 0:01:40]} 10. Bb2 {[%emt 0:00:25]} Nc6 {[%emt 0:01:17]} 11. Rc1 {[%emt 0:07:39]} a6 {[%emt 0:03:15]} 12. Be2 {[%emt 0:07:03]} (12. Qb1 $16) 12... e5 {[%emt 0:18:20]} 13. Qe4 {[%emt 0:28:23][%cal Rf3e5]} f6 {[%emt 0:01:25]} 14. d4 {[%emt 0:02:13][%cal Rd4e5]} Na5 {[%emt 0:03:57]} (14... Qd7 $1 $11 {and Black is okay.}) 15. Qg4 {[%emt 0:03:57]} (15. Qh4 $18 {[%cal Rd4e5]} cxd4 16. exd4) 15... cxd4 {[%emt 0:05:52]} 16. exd4 {[%emt 0:01:33]} e4 {[%emt 0:00:12]} 17. Nd2 {[%emt 0:03:23]} Qd7 {[%emt 0:01:13]} 18. Qxd7+ {[%emt 0:03:02]} Kxd7 {[%emt 0:00:02]} 19. Bg4+ {[%emt 0:00:15]} Kd8 {[%emt 0:00:40]} 20. O-O {[%emt 0:01:38][%cal Od4d5] White is more active.} Bb4 {[%emt 0:08:05]} 21. Nc4 {[%emt 0:02:53]} ({White should play} 21. Rfd1) 21... b5 $2 {[%emt 0:01:42] [#]} (21... Nxc4 $16 22. Rxc4 a5) 22. Ne3 $2 {[%emt 0:02:01]} (22. Nb6 $18 {and the rest is easy.} Rb8 23. d5) 22... g6 {[%emt 0:01:01]} (22... Bc8 $16) 23. d5 $18 {[%emt 0:00:36]} Rf8 {[%emt 0:00:18]} 24. Be6 {[%emt 0:00:35]} Bc8 {[%emt 0:04:15]} 25. Rfd1 {[%emt 0:01:21]} Bd6 {[%emt 0:02:10]} 26. Bxc8 $2 {[%emt 0:11:13]} (26. Ng4 $18 f5 27. Bf6+ Be7 28. d6 (28. Bxe7+ Kxe7 29. Ne3 Bxe6 $15) 28... Bxf6 29. d7 Bxd7 30. Rxd7+ Ke8 31. Ne3) 26... Rxc8 $11 {[%emt 0:00:08]} 27. Rxc8+ {[%emt 0:00:46]} Kxc8 {[%emt 0:00:44]} 28. Bc3 {[%emt 0:01:29]} Nb7 {[%emt 0:00:25]} 29. Rc1 {[%emt 0:00:03] Strongly threatening Ng4.} Kd7 {[%emt 0:00:43]} 30. Bd4 {[%emt 0:03:08]} f5 {[%emt 0:01:11] Against Ng4} 31. Rc6 {[%emt 0:00:57]} Rc8 {[%emt 0:00:24]} 32. Rxa6 {[%emt 0:00:56]} Rc1+ {[%emt 0:00:05]} 33. Nf1 {[%emt 0:00:05] [#]} Rd1 {[%emt 0:00:06]} ({Better is} 33... Bc5 $1 $17 {[%cal Rc5d4]} 34. Bxc5 Nxc5 35. Ra7+ Kd6) 34. Bb6 {[%emt 0:03:33]} Rxd5 {[%emt 0:00:46]} 35. g3 {[%emt 0:00:06]} Bb4 {[%emt 0:06:18]} 36. a4 {[%emt 0:01:44]} bxa4 {[%emt 0:01:25]} 37. bxa4 {[%emt 0:01:23]} Rd6 {[%emt 0:00:07]} 38. Ne3 {[%emt 0:00:21]} Ke6 {[%emt 0:21:44] Black escapes into a draw.  Weighted Error Value: White=0.32/Black=0.36} 1/2-1/2

[Event "Czech Championship 2022"]
[Site "Usti nad Labem"]
[Date "2022.05.21"]
[Round "8.18"]
[White "Hladky, Tadeas"]
[Black "Horak, Jiri"]
[Result "1/2-1/2"]
[ECO "C45"]
[WhiteElo "2119"]
[BlackElo "2161"]
[Annotator "TA"]
[PlyCount "146"]
[EventDate "2022.05.12"]
[EventType "swiss"]
[EventCountry "CZE"]
[SourceTitle "playchess.com"]
[Source "ChessBase"]
[SourceQuality "1"]
[TimeControl "40/5400+30:1800+30"]

{[%evp 15,146,21,27,18,118,129,129,87,95,102,104,76,133,67,72,15,24,22,26,-20,-25,-41,-54,-361,-366,-344,-343,-389,-60,-78,-78,-50,-24,-29,-32,-73,-61,-47,-72,-85,-56,-189,-199,-198,-188,-176,-191,-187,-151,-292,-285,-288,-314,-314,-309,-295,-286,-334,-261,-261,-261,-261,-260,-253,-242,-719,-702,-570,-537,-1588,-500,-655,-644,-605,-547,-535,-510,-519,-504,-433,-12,-12,-12,-12,-12,-12,-12,-12,-12,-12,-12,-12,-12,-12,-12,-12,-12,-12,-12,-12,-12,-12,0,-12,-12,-12,-12,-12,-12,-12,-12,-12,0,-12,-12,-12,-8,-8,-8,-8,-8,-8,-8,-8,-8,-8,-8,-8,-8,-8,-8,-8,0]} 1. e4 {[%emt 0:00:01]} e5 {[%emt 0:02:20]} 2. Nf3 {[%emt 0:00:09]} Nc6 {[%emt 0:00:16]} 3. d4 {[%emt 0:00:06]} exd4 {[%emt 0:01:20]} 4. Nxd4 {[%emt 0:00:10]} Bc5 {[%emt 0:01:38]} 5. Be3 {[%emt 0:00:10]} Qf6 {[%emt 0:00:33]} 6. c3 {[%emt 0:00:05]} Nge7 {[%emt 0:00:31]} 7. Bc4 {[%emt 0:00:19]} Ne5 {[%emt 0:01:30] 7...0-0 might become the main line.} 8. Be2 {[%emt 0:00:07]} d6 {[%emt 0:03:17]} 9. O-O {[%emt 0:00:56] C45: Scotch Game.} h5 {[%emt 0:01:09]} (9... Qg6 $11 {keeps the balance.}) 10. Nb5 $16 {[%emt 0:04:14]} O-O {[%emt 0:10:59]} 11. Bxc5 {[%emt 0:02:07] White is better.} dxc5 {[%emt 0:00:22]} 12. Nxc7 {[%emt 0:00:35]} Rb8 {[%emt 0:00:07]} 13. Bxh5 {[%emt 0:20:12] [#]} Qf4 $146 {[%emt 0:13:59]} (13... Qb6 $142) ({Predecessor:} 13... g6 14. Be2 Kg7 15. f4 Rh8 16. g3 N5c6 17. Nd5 Qe6 18. Nxe7 Nxe7 19. Nd2 Bd7 20. Rf2 Rh6 21. Nf3 Bc6 22. Ng5 Qf6 23. e5 {1-0 (23) Yalcin,A (2027)-Feichtner,E (1873) Schweinfurt 2013}) 14. Nd5 {[%emt 0:28:10]} (14. g3 $1 $16 {[%cal Rg3f4]} Qxe4 15. Re1) 14... Nxd5 $14 {[%emt 0:00:07]} 15. Qxd5 {[%emt 0:00:27]} (15. exd5 $16 {Black must now prevent g3.} Rd8 16. Na3) 15... Be6 $11 {[%emt 0:05:21]} (15... Bg4 16. Bxg4 (16. g3 Nf3+ 17. Kg2 Nh4+ 18. gxh4 Qf3+ 19. Kg1 Bxh5 $11) 16... Nxg4 17. g3 $16 (17. Qh5 Rbe8 $11)) 16. Qd2 {[%emt 0:02:39]} ({Don't blunder} 16. Qxc5 $2 Qg5 17. Qe3 Qxh5 $19) 16... Qxe4 {[%emt 0:03:06]} 17. Qe2 {[%emt 0:00:11]} (17. Re1 {should be considered.} Qf5 18. Bd1) 17... Qf5 $36 {[%emt 0:02:23][%mdl 3072] Hoping for ...Bc4. Black has compensation. White is under pressure.} 18. f4 {[%emt 0:09:20]} Nd3 {[%emt 0:07:43]} 19. g3 $2 {[%emt 0:11:04][%mdl 8192]} (19. Bg4 $15 Qxg4 20. Qxd3) 19... c4 $19 {[%emt 0:00:51]} 20. Bf3 {[%emt 0:00:49]} Rfe8 {[%emt 0:02:25]} 21. Qg2 {[%emt 0:02:27]} Qb5 $2 {[%emt 0:03:43]} (21... Qc5+ $19 22. Kh1 Bh3 $1 {[%mdl 512]} 23. Qxh3 Nf2+ 24. Rxf2 Qxf2) 22. Na3 $15 {[%emt 0:00:31]} Qb6+ {[%emt 0:04:16]} (22... Qd7 $5 {[%cal Re6h3]} 23. g4 Nxf4 $15) 23. Kh1 {[%emt 0:00:14]} Qxb2 {[%emt 0:00:09]} 24. Qxb2 {[%emt 0:00:24]} Nxb2 {[%emt 0:00:05][%cal Bd3b2,Bb2a4,Ba4c5,Bc5e4][%mdl 32]} 25. Rab1 {[%emt 0:00:55]} Na4 {[%emt 0:00:11]} 26. Rfc1 {[%emt 0:07:16]} Nc5 {[%emt 0:03:13]} 27. Nb5 {[%emt 0:00:35]} Bf5 {[%emt 0:02:57]} 28. Nd6 {[%emt 0:02:09]} ({White must play} 28. Ra1 $1 $15) 28... Bxb1 $19 {[%emt 0:00:09]} 29. Nxe8 {[%emt 0:00:04]} Be4 {[%emt 0:02:41]} ({Worse is} 29... Rxe8 30. Rxb1 a6 31. a4 $15 (31. Bxb7 Rb8 $17)) ({And not} 29... Bxa2 30. Nd6 $17) 30. Bxe4 {[%emt 0:00:20]} Nxe4 {[%emt 0:00:20][%mdl 4096] Endgame KRN-KRN} 31. Nc7 {[%emt 0:00:05]} Rd8 {[%emt 0:00:26]} 32. Nb5 {[%emt 0:00:46] [#]} (32. a4 $17) 32... a6 $1 {[%emt 0:00:14]} 33. Na3 {[%emt 0:01:30]} b5 {[%emt 0:01:20]} 34. Nb1 {[%emt 0:00:16] Inhibits Rd2.} Rd3 {[%emt 0:00:39]} 35. Kg2 {[%emt 0:01:12]} f5 {[%emt 0:00:06]} 36. Kf1 {[%emt 0:04:10]} Nd2+ {[%emt 0:01:40]} 37. Nxd2 {[%emt 0:00:13]} Rxd2 {[%emt 0:00:05] KR-KR} 38. a4 {[%emt 0:00:02]} Rxh2 {[%emt 0:00:36] aiming for ...Rh1+.} 39. Kg1 {[%emt 0:00:03] Prevents Rh1+.} Rb2 {[%emt 0:00:15]} 40. axb5 $2 {[%emt 0:01:56]} (40. Kf1) 40... axb5 {[%emt 0:00:21]} 41. Rd1 {[%emt 0:30:24]} Kf7 {[%emt 0:31:12]} 42. Rd5 {[%emt 0:00:38]} g6 {[%emt 0:01:01]} (42... b4 $142 43. cxb4 c3 44. Rxf5+ Ke6) 43. Rc5 {[%emt 0:00:21]} Ke6 {[%emt 0:00:35] ...Kd6 is the strong threat.} 44. Kf1 {[%emt 0:01:58]} Kd6 {[%emt 0:00:46]} 45. Re5 {[%emt 0:00:05]} b4 {[%emt 0:01:05]} 46. cxb4 {[%emt 0:00:33]} Rxb4 {[%emt 0:01:26] Strongly threatening ...c3.} 47. Ra5 {[%emt 0:01:15] [#]} Rb2 {[%emt 0:03:07]} ({Better is} 47... Rb3 $1 $19 48. Kf2 Rd3 49. Ra6+ Kc5 50. Rxg6 c3) 48. Ke1 $1 $11 {[%emt 0:00:43] The position is equal.} Ke6 {[%emt 0:04:08]} 49. Rc5 {[%emt 0:00:00]} Rg2 {[%emt 0:00:00]} 50. Rxc4 {[%emt 0:00:00]} Rxg3 {[%emt 0:00:00]} 51. Kf2 {[%emt 0:00:00]} Rd3 {[%emt 0:00:00]} 52. Rc6+ {[%emt 0:00:00]} Rd6 {[%emt 0:00:00]} 53. Rc5 {[%emt 0:00:00]} Kf6 {[%emt 0:00:00]} 54. Ra5 {[%emt 0:00:00]} Kg7 {[%emt 0:00:00]} 55. Ra8 {[%emt 0:00:00]} Rf6 {[%emt 0:00:00]} 56. Kf3 {[%emt 0:00:00]} Rb6 {[%emt 0:00:00]} 57. Kf2 {[%emt 0:00:00]} Rb3 {[%emt 0:00:00]} 58. Rc8 {[%emt 0:00:00]} Rb6 {[%emt 0:00:00]} 59. Ra8 {[%emt 0:00:00]} Kf6 {[%emt 0:00:00]} 60. Ra5 {[%emt 0:00:00]} Ke6 {[%emt 0:00:00]} 61. Re5+ $1 {[%emt 0:00:00]} Kd6 {[%emt 0:00:00]} 62. Ra5 {[%emt 0:00:00]} Kc6 {[%emt 0:00:00]} 63. Re5 {[%emt 0:00:00]} Kd6 {[%emt 0:00:00]} 64. Ra5 {[%emt 0:00:00]} Rc6 {[%emt 0:00:00]} 65. Kf3 $1 {[%emt 0:00:00]} Rc5 {[%emt 0:00:00]} 66. Ra6+ {[%emt 0:00:00]} Kd5 {[%emt 0:00:00]} 67. Rxg6 {[%emt 0:00:00]} Rc3+ {[%emt 0:00:00]} 68. Kf2 {[%emt 0:00:00]} Ke4 {[%emt 0:00:00]} 69. Ra6 $1 {[%emt 0:00:00]} Kxf4 {[%emt 0:00:00]} 70. Ra4+ {[%emt 0:00:00]} Kg5 {[%emt 0:00:00]} 71. Rb4 $1 {[%emt 0:00:00]} Ra3 {[%emt 0:00:00]} 72. Rc4 {[%emt 0:00:00]} Ra1 {[%emt 0:00:00]} 73. Rb4 {[%emt 0:00:00]} Ra3 {[%emt 0:00:00] Black had all chances to win.  Weighted Error Value: White=0.43/Black=0.44} 1/2-1/2

[Event "Czech Championship 2022"]
[Site "Usti nad Labem"]
[Date "2022.05.21"]
[Round "8.19"]
[White "Sykora, Ondrej"]
[Black "Hrbek, Stepan"]
[Result "1/2-1/2"]
[ECO "B22"]
[WhiteElo "2092"]
[BlackElo "2303"]
[Annotator "TA"]
[PlyCount "98"]
[EventDate "2022.05.12"]
[EventType "swiss"]
[EventCountry "CZE"]
[SourceTitle "playchess.com"]
[Source "ChessBase"]
[SourceQuality "1"]
[TimeControl "40/5400+30:1800+30"]

{[%evp 9,98,-12,-2,-9,-8,-14,-3,-2,-2,-14,2,-5,0,-6,-10,0,-5,-14,0,-6,-7,-54,0,0,0,-6,-6,0,-9,-45,-18,-293,-281,-287,-275,-351,-150,-264,-256,-363,-349,-297,-316,-267,-236,-241,-250,-226,-193,-335,-189,-212,-26,-30,-38,-34,-21,-24,0,0,156,145,122,122,149,156,184,0,140,90,181,179,526,506,463,422,360,353,322,332,338,338,598,94,159,0,551,0,142,0,463]} 1. e4 {[%emt 0:00:03]} c5 {[%emt 0:00:09]} 2. c3 {[%emt 0:00:06]} Nf6 {[%emt 0:00:16]} 3. f3 {[%emt 0:03:36]} e5 {[%emt 0:01:18]} 4. c4 {[%emt 0:00:05]} Nc6 {[%emt 0:01:13]} 5. Nc3 {[%emt 0:00:06]} d6 {[%emt 0:03:18]} 6. d3 {[%emt 0:00:18] B22: Sicilian: 2 c3.} Be7 {[%emt 0:00:46] [#]} 7. g3 $146 {[%emt 0:00:06]} ({Predecessor:} 7. Nge2 Nd4 8. Bg5 O-O 9. Ng3 Nd5 10. Nxd5 Bxg5 11. Be2 Be6 12. O-O Bxd5 {0-1 (12) Mora,S (1800)-Dialfonso,D (2000) FICGS email 2014}) 7... h5 {[%emt 0:00:21]} 8. h4 {[%emt 0:01:23]} a6 {[%emt 0:04:26]} 9. Bh3 {[%emt 0:00:16]} Rb8 {[%emt 0:04:48]} 10. Bxc8 {[%emt 0:01:49]} Qxc8 {[%emt 0:00:28]} 11. Nd5 {[%emt 0:03:42]} Nxd5 {[%emt 0:10:23]} 12. cxd5 {[%emt 0:00:19]} Nd4 {[%emt 0:00:08]} 13. Be3 {[%emt 0:02:16]} Qd7 {[%emt 0:00:47]} 14. Bxd4 {[%emt 0:00:32]} (14. Kf2 {looks sharper.} f5 15. Kg2 fxe4 16. dxe4 O-O 17. Qd2) 14... cxd4 {[%emt 0:00:32]} 15. Rc1 {[%emt 0:03:22]} (15. Kf1 $11) 15... Rc8 {[%emt 0:10:52]} (15... f5 $15) 16. Rxc8+ $11 {[%emt 0:00:38]} Qxc8 {[%emt 0:00:08]} 17. Rh2 {[%emt 0:00:06]} g5 {[%emt 0:06:17]} 18. hxg5 {[%emt 0:04:04]} Bxg5 {[%emt 0:00:38]} 19. Qc2 {[%emt 0:06:05]} Qd7 {[%emt 0:02:43]} 20. g4 $2 {[%emt 0:00:48][%mdl 8192]} (20. Ne2 $11) 20... Ke7 $1 $19 {[%emt 0:02:10]} 21. Qd1 {[%emt 0:03:59]} Rc8 $1 {[%emt 0:05:33]} 22. Rc2 {[%emt 0:02:24] Against Rc1} Rg8 {[%emt 0:01:15]} (22... Rxc2 $19 {is more deadly.} 23. Qxc2 hxg4) 23. Rg2 {[%emt 0:04:14]} (23. gxh5 Be3 24. Rh2 Rxg1+ 25. Ke2 Qc8) (23. Kf1 $17 {was called for.}) 23... Be3 $1 {[%emt 0:01:23]} 24. Kf1 {[%emt 0:10:18]} (24. Ne2 $142 hxg4 25. Ng3) 24... hxg4 {[%emt 0:05:25]} 25. Rxg4 {[%emt 0:01:20]} Rh8 {[%emt 0:04:46]} 26. Kg2 {[%emt 0:04:49][%cal Bf1g2,Bg2h3,Bh3h4][%mdl 32] Prevents Rh1.} Rc8 {[%emt 0:00:45] White must now prevent ...Rc1.} 27. Ne2 {[%emt 0:01:23] Against Rc1} Qb5 $1 {[%emt 0:00:21]} (27... Rh8 28. Ng3 $15) 28. b3 {[%emt 0:01:45]} Qc5 {[%emt 0:00:52]} 29. Ng3 {[%emt 0:09:08]} (29. f4 $142) 29... Bf4 {[%emt 0:19:11]} (29... Qa3 $142 30. Qe2 Qc1) 30. Nf5+ {[%emt 0:05:13]} Kf6 $2 {[%emt 0:00:06]} (30... Kd7 $19 31. Kh3 Qc3) 31. Kh3 $11 {[%emt 0:02:05]} Rh8+ {[%emt 0:09:36]} 32. Rh4 $1 {[%emt 0:00:40]} Rg8 {[%emt 0:00:03] Strongly threatening ...Qc3.} ({Much weaker is} 32... Qc8 33. Qe1 $11) 33. Rg4 {[%emt 0:01:02] Dancing on a razor blade.} Rh8+ {[%emt 0:00:44]} 34. Rh4 $1 {[%emt 0:01:19]} Rxh4+ {[%emt 0:00:15]} (34... Rg8 $11) 35. Kxh4 {[%emt 0:09:33][%mdl 4096] Endgame Threatening mate with Qg1. KQB-KQN} Qc8 {[%emt 0:00:31] And now ...Qh8+ would win.} 36. Qe1 $1 {[%emt 0:08:56]} Bg5+ {[%emt 0:01:47]} 37. Kg4 {[%emt 0:03:45]} Qg8 {[%emt 0:02:30] ( -> ...Bd2+)} 38. Qh1 $2 {[%emt 0:01:09]} (38. Kh3 $1 $18) 38... Bf4+ {[%emt 0:00:47]} (38... Bd2+ $11 {keeps the balance.} 39. Kh3 Qh8+ 40. Kg2 Qxh1+ 41. Kxh1 Bb4) 39. Kh3 $16 {[%emt 0:00:21]} a5 {[%emt 0:01:19]} (39... Bd2 $16 {might work better.}) 40. Qe1 $18 {[%emt 0:01:49]} Qc8 $2 {[%emt 0:01:05]} (40... Qf8 41. Qh4+ Bg5) 41. Qh4+ {[%emt 0:30:51]} Bg5 {[%emt 0:30:25]} 42. Qh7 {[%emt 0:00:05][%csl Gf5][%cal Rh7g7]} ({Less strong is} 42. Qg4 Qc1 $16) 42... Qf8 {[%emt 0:00:00] Prevents Qg7+.} 43. a4 {[%emt 0:00:00]} Bc1 {[%emt 0:00:00]} 44. Kh4 {[%emt 0:00:00]} Bg5+ {[%emt 0:00:00]} 45. Kg4 $1 {[%emt 0:00:00]} Bf4 $2 {[%emt 0:00:00]} (45... Bc1 46. Qh4+ Kg6) 46. Nh4 $2 {[%emt 0:00:00]} (46. Qh4+ $18 {is the precise move to win.} Kg6 47. Nxd4 $1 {[%mdl 512]} exd4 48. Kxf4) 46... Bc1 {[%emt 0:00:00]} ({Black should try} 46... Qe8 47. Nf5 Qf8 48. Qh4+ Kg6 49. Nxd4 exd4) 47. Nf5 $2 {[%emt 0:00:00]} (47. f4 $16 Bxf4 48. Nf5) 47... Bf4 {[%emt 0:00:00]} 48. Kh3 $2 {[%emt 0:00:00]} (48. Qh4+ $18 Kg6 {[#]} 49. Nxd4 $1 {[%mdl 512]} exd4 50. Kxf4) 48... Bc1 $1 $16 {[%emt 0:00:00]} 49. Kg4 $2 {[%emt 0:00:00][%mdl 8192] 0x0.0024afd80bffdp-1022s more active pieces.} (49. Kg2 $16) 49... Bf4 $1 {[%emt 0:04:40][%mdl 32768] What a bad dream for Black.  Weighted Error Value: White=0.60/Black=0.46. An unexpected result.} 1/2-1/2

[Event "Czech Championship 2022"]
[Site "Usti nad Labem"]
[Date "2022.05.21"]
[Round "8.20"]
[White "Paulus, Vaclav"]
[Black "Nytra, Ondrej"]
[Result "1-0"]
[ECO "C94"]
[WhiteElo "2093"]
[BlackElo "2219"]
[Annotator "TA"]
[PlyCount "101"]
[EventDate "2022.05.12"]
[EventType "swiss"]
[EventCountry "CZE"]
[SourceTitle "playchess.com"]
[Source "ChessBase"]
[SourceQuality "1"]
[TimeControl "40/5400+30:1800+30"]

{[%evp 18,101,34,25,28,21,29,12,12,6,15,0,17,15,21,11,17,0,2,-13,40,-6,29,10,58,49,59,61,40,43,41,29,25,-69,239,245,214,122,122,0,122,122,122,94,204,207,163,95,492,506,490,353,344,289,340,344,407,405,407,407,391,385,345,320,268,277,520,453,385,385,360,324,1545,1414,29939,7528,29944,11736,12840,12288,5105,4133,29969,29970,29969,6223]} 1. e4 {[%emt 0:00:02]} e5 {[%emt 0:00:03]} 2. Nf3 {[%emt 0:00:03]} Nc6 {[%emt 0:00:03]} 3. Bb5 {[%emt 0:00:04]} a6 {[%emt 0:00:02]} 4. Ba4 {[%emt 0:00:04]} Nf6 {[%emt 0:00:04]} 5. O-O {[%emt 0:00:04]} Be7 {[%emt 0:00:02]} 6. Re1 {[%emt 0:00:05]} b5 {[%emt 0:00:03]} 7. Bb3 {[%emt 0:00:03]} d6 {[%emt 0:00:07]} 8. c3 {[%emt 0:00:08]} O-O {[%emt 0:00:04]} 9. h3 {[%emt 0:00:03]} Nb8 {[%emt 0:00:03]} 10. d3 {[%emt 0:01:40]} Bb7 {[%emt 0:01:37] C94: Closed Ruy Lopez: Breyer Variation with 10 d3.} 11. Nbd2 {[%emt 0:00:16]} c5 {[%emt 0:00:45]} 12. Bc2 {[%emt 0:00:15]} Re8 {[%emt 0:00:58] The position is equal.} 13. Nf1 {[%emt 0:00:53]} Bf8 {[%emt 0:00:31]} 14. Ng3 {[%emt 0:02:07]} g6 {[%emt 0:05:01] [#]} 15. a4 $146 {[%emt 0:01:46]} ({Predecessor:} 15. Bb3 Bg7 16. Bg5 h6 17. Be3 Qc7 18. Qd2 Kh7 19. Bc2 Nbd7 20. Nh2 d5 21. exd5 Nxd5 {0-1 (40) Magnussen,P (1926)-Lenier,J (2121) Guernsey 2013}) 15... Bg7 {[%emt 0:00:37]} 16. Be3 {[%emt 0:03:43]} Nbd7 {[%emt 0:00:41]} 17. b4 {[%emt 0:00:46]} Qc7 {[%emt 0:01:00]} 18. Qb1 {[%emt 0:01:28]} Bc6 {[%emt 0:13:34]} (18... c4 $11) 19. a5 {[%emt 0:07:44]} (19. Bb3 $14 {was preferrable.}) 19... Rac8 {[%emt 0:01:01]} 20. Bb3 {[%emt 0:02:03]} cxb4 {[%emt 0:02:33]} (20... Re7 $11) 21. cxb4 $14 {[%emt 0:00:13]} d5 {[%emt 0:00:06]} 22. Qa2 {[%emt 0:00:24][%cal Re4d5]} Qd6 {[%emt 0:03:23]} 23. Rac1 {[%emt 0:09:23]} Bb7 {[%emt 0:03:41]} 24. Rxc8 {[%emt 0:01:15]} Rxc8 {[%emt 0:00:04]} 25. d4 {[%emt 0:00:24]} (25. Bd2 $11) 25... Nxe4 $2 {[%emt 0:02:46][%mdl 8192]} (25... exd4 $15 {keeps the upper hand.} 26. Bxd4 dxe4 27. Bxf6 (27. Bxf7+ Kh8 $15) 27... Bxf6) 26. Nxe4 $18 {[%emt 0:00:37]} dxe4 {[%emt 0:00:05] [#]} 27. Bxf7+ {[%emt 0:01:40]} (27. Ng5 $1 $18 {[%cal Rg5f7]}) 27... Kh8 $16 {[%emt 0:00:45]} 28. dxe5 {[%emt 0:10:22]} (28. Nxe5 $16 Nxe5 29. dxe5 Qxb4 30. Rb1) 28... Nxe5 {[%emt 0:08:00]} (28... Qxb4 $11 {keeps the balance.} 29. Rb1 Qf8) 29. Nxe5 {[%emt 0:01:48]} Bxe5 {[%emt 0:00:36]} 30. Bc5 {[%emt 0:01:05]} Rxc5 {[%emt 0:11:10]} (30... Qc6 $16) 31. bxc5 $18 {[%emt 0:00:31]} Qxc5 {[%emt 0:00:02]} 32. Qe6 {[%emt 0:04:34]} (32. Qd2 $18) 32... b4 $2 {[%emt 0:03:21][%mdl 8192]} (32... e3 $16 {is a better chance.} 33. Rd1 (33. fxe3 Qc3 $14) (33. Qe8+ Kg7 $15) 33... Bd4 34. Bxg6 (34. Qe8+ Kg7 $14) 34... exf2+ 35. Kf1 Bxg2+ 36. Kxg2 hxg6) 33. Rd1 {[%emt 0:02:06] White threatens Rd8+ and mate.} ({Less strong is} 33. Qe8+ Kg7 $16) 33... Kg7 {[%emt 0:02:00] [#]} 34. Bxg6 $1 {[%emt 0:01:40][%mdl 512]} hxg6 {[%emt 0:01:47]} 35. Qd7+ {[%emt 0:00:19]} Kh6 {[%emt 0:00:02]} 36. Qxb7 {[%emt 0:00:08][%mdl 4096] Endgame KQR-KQB} e3 {[%emt 0:00:03]} 37. Qf3 {[%emt 0:00:42]} exf2+ {[%emt 0:00:21]} 38. Qxf2 {[%emt 0:00:49]} Bh2+ {[%emt 0:04:08]} 39. Kf1 {[%emt 0:00:23]} Qc4+ {[%emt 0:00:02]} 40. Qe2 {[%emt 0:01:15]} Qf4+ {[%emt 0:00:06] [#]} 41. Qf3 $1 {[%emt 0:30:20]} Qxf3+ $2 {[%emt 0:31:35]} (41... Qc4+ 42. Kf2 Qa2+ 43. Ke3 Qb3+ 44. Ke2 Qc2+ 45. Rd2 Qc4+ 46. Qd3 Qc7) 42. gxf3 {[%emt 0:00:06] KR-KB} Bc7 {[%emt 0:00:06]} 43. Ra1 {[%emt 0:04:08]} Kg5 {[%emt 0:01:07]} 44. Kf2 {[%emt 0:00:57] aiming for Rc1.} Kf4 $2 {[%emt 0:00:54]} (44... b3 45. Rb1 Kh6) 45. Rc1 {[%emt 0:00:13]} Bd6 {[%emt 0:01:16]} 46. Rc6 {[%emt 0:00:41][%csl LRa6,LRd6]} Ke5 {[%emt 0:00:05]} 47. Ke2 {[%emt 0:00:32]} b3 {[%emt 0:04:33]} 48. Kd3 {[%emt 0:02:33]} Bb4 {[%emt 0:11:40]} 49. Rxa6 {[%emt 0:00:30] Rb6 would kill now.} Kf4 {[%emt 0:01:47]} 50. Rf6+ {[%emt 0:00:55]} Kg5 {[%emt 0:00:07]} 51. Rb6 {[%emt 0:00:13] Weighted Error Value: White=0.23 (precise) /Black=0.98} 1-0